lending/lending_fUSD_20250808
["ID","MTS","AMOUNT","RATE_DAILY","PERIOD"]
[377937247,1754615473822,-110759.89147046,0.00039034,2]
[377937248,1754615473834,-2500.0,0.00039034,2]
[377937249,1754615473846,-1887.11409178,0.00039034,2]
[377937250,1754615473858,-1600.46559035,0.00039034,2]
[377937251,1754615473875,-2222.59568672,0.00039034,2]
[377937252,1754615473886,-1851.94351559,0.00039034,2]
[377937253,1754615473897,-1720.94914451,0.00039034,2]
[377937254,1754615473909,-3073.24341132,0.00039034,2]
[377937255,1754615473920,-4621.26252379,0.00039034,2]
[377937256,1754615473935,-2191.9572506,0.00039034,2]
[377937257,1754615473947,-115918.06046071,0.00039034,2]
[377937258,1754615473959,-1000.0,0.00039034,3]
[377937259,1754615473972,-1000.0,0.00039034,5]
[377937260,1754615473985,-500.0,0.00039034,3]
[377937261,1754615473997,-500.0,0.00039034,5]
[377937262,1754615474008,-700.0,0.00039034,3]
[377937263,1754615474020,-5047.60299371,0.00039034,2]
[377937264,1754615474031,-1000.0,0.00039034,120]
[377937265,1754615474043,-154.48514057,0.00039034,60]
[377937266,1754615474055,-1000.0,0.00039034,30]
[377937267,1754615474067,-1000.0,0.00039034,30]
[377937268,1754615474083,-1000.0,0.00039034,30]
[377937269,1754615474095,-1000.0,0.00039034,30]
[377937270,1754615474107,-1000.0,0.00039034,30]
[377937271,1754615474120,-1000.0,0.00039034,30]
[377937272,1754615474132,-1000.0,0.00039034,30]
[377937273,1754615474144,-1000.0,0.00039034,30]
[377937274,1754615474156,-1000.0,0.00039034,30]
[377937275,1754615474167,-1000.0,0.00039034,30]
[377937276,1754615474186,-1000.0,0.00039034,30]
[377937277,1754615474198,-1000.0,0.00039034,30]
[377937278,1754615474210,-858.78301131,0.00039034,30]
[377937279,1754615474221,-1000.0,0.00039034,30]
[377937280,1754615474233,-1000.0,0.00039034,30]
[377937281,1754615474244,-342.19307348,0.00039034,30]
[377937282,1754615474255,-1000.0,0.00039034,30]
[377937283,1754615474267,-858.31295534,0.00039034,30]
[377937284,1754615474278,-198.0,0.00039034,60]
[377937285,1754615474290,-340.0,0.00039034,60]
[377937286,1754615474302,-340.0,0.00039034,60]
[377937287,1754615474313,-523.08620603,0.00039034,120]
[377937288,1754615474325,-584.0,0.00039034,60]
[377937289,1754615474335,-584.0,0.00039034,60]
[377937290,1754615474347,-584.0,0.00039034,60]
[377937291,1754615474357,-584.0,0.00039034,60]
[377937292,1754615474369,-584.0,0.00039034,60]
[377937293,1754615474380,-332.0,0.00039034,60]
[377937294,1754615474392,-400.999999,0.00039034,2]
[377937295,1754615474403,-803.12360637,0.00039034,60]
[377937296,1754615474414,-524.25528616,0.00039034,30]
[377937297,1754615474427,-391.81548225,0.00039034,30]
[377937298,1754615474443,-898.7770018,0.00039034,30]
[377937299,1754615474456,-1000.0,0.00039034,30]
[377937300,1754615474468,-758.43606454,0.00039034,30]
[377937301,1754615474479,-1007.51157561,0.00039034,30]
[377937302,1754615474492,-1145.64101796,0.00039034,30]
[377937303,1754615474504,-265.43641095,0.00039034,120]
[377937304,1754615474518,-429.72933378,0.00039034,120]
[377937305,1754615474530,-619.43264996,0.00039034,120]
[377937306,1754615474541,-841.0782356,0.00039034,60]
[377937307,1754615474552,-880.35618303,0.00039034,30]
[377937308,1754615474564,-888.77615477,0.00039034,30]
[377937309,1754615474575,-312.02693022,0.00039034,30]
[377937310,1754615474587,-386.05389571,0.00039034,90]
[377937311,1754615474600,-987.57638696,0.00039034,120]
[377937312,1754615474612,-1106.34875384,0.00039034,30]
[377937313,1754615474625,-172.94051896,0.00039034,120]
[377937314,1754615474637,-957.33676894,0.00039034,30]
[377937315,1754615474649,-1076.43069337,0.00039034,120]
[377937316,1754615474663,-480.88201126,0.00039034,120]
[377937317,1754615474676,-214.27179873,0.00039034,30]
[377937318,1754615474689,-150.93443605,0.00039034,60]
[377937319,1754615474701,-989.01425663,0.00039034,30]
[377937320,1754615474713,-164.68631155,0.00039034,120]
[377937321,1754615474726,-642.55878326,0.00039034,120]
[377937322,1754615474737,-216.98903384,0.00039034,120]
[377937323,1754615474749,-184.59242017,0.00039034,120]
[377937324,1754615474762,-1041.21246448,0.00039034,30]
[377937325,1754615474773,-361.4813067,0.00039034,30]
[377937326,1754615474786,-478.60902684,0.00039034,120]
[377937327,1754615474797,-899.24950629,0.00039034,120]
[377937328,1754615474809,-733.12039278,0.00039034,120]
[377937329,1754615474820,-422.58425302,0.00039034,120]
[377937330,1754615474833,-685.39847657,0.00039034,30]
[377937331,1754615474844,-353.94305716,0.00039034,120]
[377937332,1754615474855,-677.53845257,0.00039034,31]
[377937333,1754615474866,-1041.04362107,0.00039034,30]
[377937334,1754615474878,-906.12151898,0.00039034,120]
[377937335,1754615474889,-872.63140868,0.00039034,120]
[377937336,1754615474902,-529.31586563,0.00039034,120]
[377937337,1754615474913,-961.66197823,0.00039034,120]
[377937338,1754615474924,-1029.46818865,0.00039034,120]
[377937339,1754615474939,-518.52998535,0.00039034,30]
[377937340,1754615474950,-1063.68245585,0.00039034,120]
[377937341,1754615474961,-559.5299327,0.00039034,30]
[377937342,1754615474972,-997.0,0.00039034,30]
[377937343,1754615474984,-472.69116579,0.00039034,120]
[377937344,1754615474995,-396.97366356,0.00039034,120]
[377937345,1754615475007,-490.27779077,0.00039034,120]
[377937346,1754615475019,-909.71991254,0.00039034,30]
[377937347,1754615475030,-306.64379404,0.00039034,30]
[377937348,1754615475041,-773.96536548,0.00039034,30]
[377937349,1754615475052,-1040.59385709,0.00039034,120]
[377937350,1754615475063,-575.01294155,0.00039034,120]
[377937351,1754615475074,-208.0228813,0.00039034,60]
[377937352,1754615475086,-210.02926252,0.00039034,30]
[377937353,1754615475098,-277.42518649,0.00039034,120]
[377937354,1754615475109,-879.9186501,0.00039034,120]
[377937355,1754615475121,-389.04318841,0.00039034,30]
[377937356,1754615475132,-275.09622587,0.00039034,30]
[377937357,1754615475143,-865.79377473,0.00039034,30]
[377937358,1754615475154,-209.84799847,0.00039034,31]
[377937359,1754615475165,-723.53690778,0.00039034,120]
[377937360,1754615475179,-267.8233164,0.00039034,120]
[377937361,1754615475191,-156.10750416,0.00039034,120]
[377937362,1754615475203,-1019.38916611,0.00039034,120]
[377937363,1754615475214,-219.45518784,0.00039034,120]
[377937364,1754615475226,-173.20427867,0.00039034,120]
[377937365,1754615475237,-270.15725476,0.00039034,30]
[377937366,1754615475248,-408.02808287,0.00039034,120]
[377937367,1754615475259,-528.23456436,0.00039034,120]
[377937368,1754615475269,-442.2491706,0.00039034,30]
[377937369,1754615475280,-868.946161,0.00039034,30]
[377937370,1754615475291,-165.34459612,0.00039034,30]
[377937371,1754615475301,-995.04543541,0.00039034,120]
[377937372,1754615475312,-978.42853401,0.00039034,60]
[377937373,1754615475323,-691.35062551,0.00039034,120]
[377937374,1754615475334,-265.35411997,0.00039034,30]
[377937375,1754615475345,-485.41143414,0.00039034,60]
[377937376,1754615475356,-568.55849733,0.00039034,120]
[377937377,1754615475623,-263.24554047,0.00039034,120]
[377937378,1754615475636,-987.68785431,0.00039034,120]
[377937379,1754615475647,-1001.30319393,0.00039034,60]
[377937380,1754615475659,-500.45567807,0.00039034,120]
[377937381,1754615475670,-210.19483955,0.00039034,120]
[377937382,1754615475685,-561.70222096,0.00039034,120]
[377937383,1754615475696,-20537.63908881,0.00039034,7]
[377937384,1754615475708,-87896.2462849,0.00039034,30]
[377937385,1754615475720,-23215.11421416,0.00039034,2]
[377937386,1754615475732,-5062.5449969,0.00039034,2]
[377937387,1754615475743,-254313.56224399,0.00039034,2]
[377937388,1754615475754,-15057.89004734,0.00039034,2]
[377937389,1754615475764,-6000.0,0.00039034,2]
[377937390,1754615475775,-1482.40851289,0.00039034,2]
[377937391,1754615475788,-3081.68354326,0.00039034,2]
[377937392,1754615475799,-3351.96103955,0.00039034,2]
[377937393,1754615475810,-7832.36195969,0.00039034,2]
[377937394,1754615475824,-7943.94098493,0.00039034,2]
[377937395,1754615475835,-20000.0,0.00039034,2]
[377937396,1754615475846,-2000.0,0.00039034,31]
[377937397,1754615475857,-709825.53517066,0.00039034,2]
[377937398,1754615475868,-6115.23622709,0.00039034,30]
[377937399,1754615475880,-838.199999,0.00039034,120]
[377937400,1754615475891,-181.05134047,0.00039034,60]
[377937401,1754615475904,-281.0,0.00039034,120]
[377937402,1754615475916,-580.4646489,0.00039034,120]
[377937403,1754615475930,-587.14243159,0.00039034,30]
[377937404,1754615475942,-5529.13071651,0.00039034,30]
[377937405,1754615475953,-63727.05375492,0.00039034,2]
[377937406,1754615475965,-1533.84990532,0.00039034,2]
[377937407,1754615475976,-341.29765762,0.00039034,2]
[377937408,1754615475987,-2476.55098483,0.00039034,2]
[377937409,1754615475998,-2728.58334991,0.00039034,2]
[377937410,1754615476009,-1692.39232494,0.00039034,2]
[377937411,1754615476021,-159.08081742,0.00039034,120]
[377937412,1754615476032,-304.65067508,0.00039034,120]
[377937413,1754615476044,-6918.19034128,0.00039034,2]
[377937414,1754615476055,-1272.60159488,0.00039034,2]
[377937415,1754615476067,-7785.60159557,0.00039034,2]
[377937416,1754615476079,-161.95502785,0.00039034,30]
[377937417,1754615476091,-9313.37366848,0.00039034,2]
[377937418,1754615476103,-1322.92920521,0.00039034,2]
[377937419,1754615476116,-3449.69526695,0.00039034,2]
[377937420,1754615476129,-114542.6493408,0.00039034,2]
[377937421,1754615476303,-383.93360353,0.00039034,2]
[377937422,1754615476314,-156.56303215,0.00039034,120]
[377937423,1754615476325,-443.69796034,0.00039034,120]
[377937424,1754615476336,-170.81858053,0.00039034,30]
[377937425,1754615476346,-158.07257842,0.00039034,120]
[377937426,1754615476357,-1936.94713406,0.00039034,60]
[377937427,1754615476368,-184.32191457,0.00039034,2]
[377937428,1754615476387,-415.72,0.00020546,2]
[377937429,1754615476397,-316.46335078,0.00039034,2]
[377937430,1754615476411,-349.38153342,0.00039034,2]
[377937431,1754615476435,-33.04181542,0.00039034,2]
[377937432,1754615476450,-160.0,0.00039034,120]
[377937433,1754615476461,-4221.64404135,0.00039034,2]
[377937434,1754615476475,-5882.79380989,0.00039034,2]
[377937435,1754615476486,-27379.92558329,0.00039034,120]
[377937436,1754615476498,-1403.92094162,0.00039034,2]
[377937437,1754615476509,-12940.29044028,0.00039034,2]
[377937438,1754615476525,-1936.61729093,0.00039034,2]
[377937439,1754615476537,-403.60609574,0.00039034,120]
[377937440,1754615476548,-3540.60293616,0.00039034,30]
[377937441,1754615476560,-169.26215868,0.00039034,30]
[377937442,1754615476571,-177.7214652,0.00039034,30]
[377937443,1754615476582,-787.0,0.00039034,120]
[377937444,1754615476593,-1000.0,0.00039034,30]
[377937445,1754615476605,-1000.0,0.00039034,30]
[377937446,1754615476616,-1000.0,0.00039034,30]
[377937447,1754615476627,-1000.0,0.00039034,30]
[377937448,1754615476639,-1000.0,0.00039034,30]
[377937449,1754615476649,-1000.0,0.00039034,60]
[377937450,1754615476659,-1000.0,0.00039034,30]
[377937451,1754615476671,-1000.0,0.00039034,30]
[377937452,1754615476686,-1000.0,0.00039034,60]
[377937453,1754615476699,-1000.0,0.00039034,30]
[377937454,1754615476711,-1000.0,0.00039034,60]
[377937455,1754615476722,-1000.0,0.00039034,30]
[377937456,1754615476733,-1000.0,0.00039034,30]
[377937457,1754615476745,-1000.0,0.00039034,30]
[377937458,1754615476760,-1000.0,0.00039034,30]
[377937459,1754615476771,-1000.0,0.00039034,120]
[377937460,1754615476782,-1000.0,0.00039034,30]
[377937461,1754615476794,-1000.0,0.00039034,120]
[377937462,1754615476805,-1000.0,0.00039034,60]
[377937463,1754615476816,-1000.0,0.00039034,30]
[377937464,1754615476827,-1000.0,0.00039034,60]
[377937465,1754615476839,-1000.0,0.00039034,60]
[377937466,1754615476851,-1000.0,0.00039034,30]
[377937467,1754615476861,-1000.0,0.00039034,120]
[377937468,1754615476872,-1000.0,0.00039034,30]
[377937469,1754615476884,-1000.0,0.00039034,30]
[377937470,1754615476896,-1000.0,0.00039034,60]
[377937471,1754615476908,-1000.0,0.00039034,30]
[377937472,1754615476919,-1000.0,0.00039034,60]
[377937473,1754615476934,-46262.53911562,0.00039034,60]
[377937474,1754615476946,-1055.0,0.00039034,120]
[377937475,1754615476957,-270.0,0.00039034,120]
[377937476,1754615476969,-49446.93515795,0.00039034,2]
[377937477,1754615476981,-206.377,0.00039034,120]
[377937478,1754615476991,-12382.84,0.00039034,30]
[377937479,1754615477002,-13167.0,0.00039034,30]
[377937480,1754615477013,-1566.57992048,0.00039034,2]
[377937481,1754615477024,-9457.24255251,0.00039034,2]
[377937482,1754615477034,-7807.47519996,0.00039034,2]
[377937483,1754615477044,-14466.13542043,0.00039034,2]
[377937484,1754615477055,-163.17,0.00039034,2]
[377937485,1754615477066,-40596.97253573,0.00039034,30]
[377937486,1754615477077,-6844.04873658,0.00039034,4]
[377937487,1754615477087,-15000.0,0.00039034,30]
[377937488,1754615477098,-14924.52353227,0.00039034,30]
[377937489,1754615477108,-22857.09452853,0.00039034,30]
[377937490,1754615477119,-3821.0,0.00039034,30]
[377937491,1754615477130,-772.17927464,0.00039034,2]
[377937492,1754615477141,-449.55790307,0.00039034,2]
[377937493,1754615477153,-16227.6824702,0.00039034,7]
[377937494,1754615477164,-5250.27712403,0.00039034,4]
[377937495,1754615477175,-540.67,0.00039034,30]
[377937496,1754615477189,-272.16,0.00039034,30]
[377937497,1754615477200,-499.48483807,0.00039034,2]
[377937498,1754615477212,-135530.84899822,0.00039034,90]
[377937499,1754615477223,-270.23800645,0.00039034,20]
[377937500,1754615477234,-5000.0,0.00039034,60]
[377937501,1754615477245,-6434.88443642,0.00039034,120]
[377937502,1754615477255,-1000.02,0.00039034,60]
[377937503,1754615477266,-4100.03647889,0.00039034,2]
[377937504,1754615477277,-63461.26810492,0.00039034,120]
[377937505,1754615477288,-994.14098901,0.00039034,2]
[377937506,1754615477299,-627.774037,0.00039034,6]
[377937507,1754615477311,-231.36882211,0.00039034,120]
[377937508,1754615477323,-3816.52644361,0.00039034,30]
[377937509,1754615477334,-48651.88423891,0.00039034,30]
[377937510,1754615477345,-10719.12554968,0.00039034,3]
[377937511,1754615477356,-1718.85118585,0.00039034,2]
[377937512,1754615477367,-1004.41920639,0.00039034,30]
[377937513,1754615477378,-5348.32,0.00039034,20]
[377937514,1754615477389,-5268.46165741,0.00039034,120]
[377937515,1754615477400,-35860.90258535,0.00039034,2]
[377937516,1754615477411,-4701.88386173,0.00039034,120]
[377937517,1754615477422,-4333.74088498,0.00039034,120]
[377937518,1754615477437,-8737.57060512,0.00039034,120]
[377937519,1754615477449,-11670.32748286,0.00039034,120]
[377937520,1754615477460,-5050.0,0.00039034,36]
[377937521,1754615477471,-15009.40429832,0.00039034,3]
[377937522,1754615477482,-492.07074702,0.00039034,3]
[377937523,1754615477493,-69477.51941324,0.00039034,7]
[377937524,1754615477507,-1784.754799,0.00039034,7]
[377937525,1754615477529,-400.0,0.00021765,2]
[377937526,1754615477539,-426.61846658,0.00039034,7]
[377937527,1754615477552,-1151.68104273,0.00039034,7]
[377937528,1754615477565,-355.9999997,0.00039034,7]
[377937529,1754615477585,-6953.53968342,0.00039034,7]
[377937530,1754615477596,-998.469998,0.00039034,120]
[377937531,1754615477608,-2513.12735133,0.00039034,120]
[377937532,1754615477619,-1361.0,0.00039034,120]
[377937533,1754615477629,-150.0,0.00039034,30]
[377937534,1754615477639,-161.4206508,0.00039034,120]
[377937535,1754615477651,-1023.01708584,0.00039034,120]
[377937536,1754615477662,-2307.08935796,0.00039034,120]
[377937537,1754615477672,-1084.0,0.00039034,30]
[377937538,1754615477687,-374.09046821,0.00039034,30]
[377937539,1754615477698,-1084.0,0.00039034,30]
[377937540,1754615477709,-163.8,0.00039034,2]
[377937541,1754615477719,-350.0,0.00039034,120]
[377937542,1754615477730,-1000.0,0.00039034,2]
[377937543,1754615477739,-340.85010336,0.00039034,120]
[377937544,1754615477967,-0.0010929,0.0001945,2]
[377937545,1754615477980,-399.9989071,0.0001945,2]
[377937546,1754615477990,-400.0,0.00020546,2]
[377937547,1754615478001,-415.72,0.0002082,2]
[377937548,1754615478011,-659.14989664,0.00039034,120]
[377937549,1754615478021,-388.28073697,0.00039034,120]
[377937550,1754615478033,-1000.0,0.00039034,90]
[377937551,1754615478044,-838.2,0.00039034,90]
[377937552,1754615478056,-115.37968896,0.00039038,2]
[377937553,1754615478376,-400.0,0.00019451,2]
[377937554,1754615478388,-400.0,0.00019724,2]
[377937555,1754615478399,-400.0,0.00019725,2]
[377937556,1754615478410,-460.26,0.00019998,2]
[377937557,1754615478421,-400.0,0.0002082,2]
[377937558,1754615478436,-415.72,0.00021094,2]
[377937559,1754615478448,-400.0,0.00021094,2]
[377937560,1754615478459,-415.72,0.00021368,2]
[377937561,1754615478470,-415.72,0.00021642,2]
[377937562,1754615478482,-415.72,0.00021916,2]
[377937563,1754615478494,-400.0,0.00022039,2]
[377937564,1754615478505,-415.72,0.0002219,2]
[377937565,1754615478521,-400.0,0.00022313,2]
[377937566,1754615478533,-415.72,0.00022464,2]
[377937567,1754615478544,-150.0,0.00038124,2]
[377937568,1754615478557,-300.0,0.00038165,2]
[377937569,1754615478568,-150.0,0.00038207,2]
[377937570,1754615478579,-150.0,0.0003832,2]
[377937571,1754615478590,-150.0,0.00038345,2]
[377937572,1754615478601,-150.0,0.0003845,2]
[377937573,1754615478612,-150.0,0.00038466,2]
[377937574,1754615478623,-150.0,0.0003867,2]
[377937575,1754615478634,-150.0,0.00038968,2]
[377937576,1754615478645,-34.62031104,0.00039038,2]
[377937577,1754615478660,-150.0,0.00039058,2]
[377937578,1754615478670,-150.0,0.0003906,2]
[377937579,1754615478684,-150.0,0.00039062,120]
[377937580,1754615478696,-300.0,0.00039068,30]
[377937581,1754615478707,-151.0,0.00039068,30]
[377937582,1754615478719,-200.0,0.00039068,30]
[377937583,1754615478729,-151.0,0.00039068,30]
[377937584,1754615478739,-300.0,0.00039068,30]
[377937585,1754615478749,-151.0,0.00039068,30]
[377937586,1754615478761,-160.0,0.00039068,30]
[377937587,1754615478772,-151.0,0.00039068,30]
[377937588,1754615478785,-160.0,0.00039068,30]
[377937589,1754615478796,-300.0,0.00039068,30]
[377937590,1754615478810,-579.34833588,0.00039068,30]
[377937591,1754615478825,-20.65166412,0.00039068,30]
[377937592,1754615478836,-300.0,0.00039068,30]
[377937593,1754615478847,-500.0,0.00039068,30]
[377937594,1754615478857,-160.0,0.00039068,30]
[377937595,1754615478868,-600.0,0.00039068,30]
[377937596,1754615478878,-151.0,0.00039068,30]
[377937597,1754615478889,-151.0,0.00039068,30]
[377937598,1754615478901,-300.0,0.00039068,30]
[377937599,1754615478912,-160.0,0.00039068,30]
[377937600,1754615478922,-500.0,0.00039068,30]
[377937601,1754615478938,-151.0,0.00039068,30]
[377937602,1754615478950,-300.0,0.00039068,30]
[377937603,1754615478961,-160.0,0.00039068,30]
[377937604,1754615478972,-500.0,0.00039068,30]
[377937605,1754615478982,-151.0,0.00039068,30]
[377937606,1754615478993,-160.0,0.00039068,30]
[377937607,1754615479004,-500.0,0.00039068,30]
[377937608,1754615479015,-600.0,0.00039068,30]
[377937609,1754615479027,-160.0,0.00039068,30]
[377937610,1754615479039,-90.01580673,0.00039068,30]
[377937611,1754615479192,-400.0,0.00019999,2]
[377937612,1754615479203,-173.0628094,0.00020273,2]
[377937613,1754615479225,-226.9371906,0.00020273,2]
[377937614,1754615479236,-172.35,0.00020547,2]
[377937615,1754615479247,-400.0,0.00021368,2]
[377937616,1754615479259,-400.0,0.00021642,2]
[377937617,1754615479270,-155.47939364,0.00021916,2]
[377937618,1754615479281,-318.17,0.00022587,2]
[377937619,1754615479292,-415.72,0.00022738,2]
[377937620,1754615479304,-415.72,0.00023012,2]
[377937621,1754615479315,-415.72,0.00023286,2]
[377937622,1754615479325,-415.72,0.0002356,2]
[377937623,1754615479336,-415.72,0.00023834,2]
[377937624,1754615479347,-415.72,0.00024108,2]
[377937625,1754615479358,-415.72,0.00024382,2]
[377937626,1754615479369,-415.72,0.00024656,2]
[377937627,1754615479380,-415.72,0.0002493,2]
[377937628,1754615479391,-415.72,0.00025204,2]
[377937629,1754615479403,-157.95038835,0.000274,2]
[377937630,1754615479414,-209.98419327,0.00039068,30]
[377937631,1754615479425,-500.0,0.00039068,30]
[377937632,1754615479444,-600.0,0.00039068,30]
[377937633,1754615479457,-160.0,0.00039068,30]
[377937634,1754615479468,-300.0,0.00039068,30]
[377937635,1754615479479,-500.0,0.00039068,30]
[377937636,1754615479491,-600.0,0.00039068,30]
[377937637,1754615479501,-300.0,0.00039068,30]
[377937638,1754615479514,-1525.57725333,0.00039068,30]
[377937639,1754615479533,-150.0,0.000347,30]
[377937640,1754615479545,-2362.42274667,0.00039068,30]
[377937641,1754615479556,-500.0,0.00039068,30]
[377937642,1754615479566,-200.0,0.00039068,30]
[377937643,1754615479577,-240.37004024,0.00039068,30]
[377937644,1754615479590,-59.62995976,0.00039068,30]
[377937645,1754615479602,-151.0,0.00039068,30]
[377937646,1754615479613,-377.37004024,0.00039068,30]
[377937654,1754616109892,500.0,0.000301,120]
[377937663,1754616367935,14375.810732,7.945e-05,2]
[377937664,1754616368621,-171.98609343,0.00018051,2]
[377937665,1754616368649,-150.0,0.00018055,2]
[377937666,1754616368678,-2453.913744,0.0001806,2]
[377937670,1754616396719,2056.88102244,0.00018022,2]
[377937671,1754616437800,-200.0,0.000181,6]
[377937672,1754616437827,-1000.0,0.00018105,4]
[377937673,1754616437856,-150.0,0.00018122,2]
[377937674,1754616444203,177.12,0.00027945,120]
[377937675,1754616445146,5000.0,0.00022,120]
[377937679,1754616470841,-281.17456355,0.000182,6]
[377937682,1754616509859,259.64,0.00013699,2]
[377937684,1754616535435,150.0,0.000182,2]
[377937688,1754616577586,158.0,0.00017068,3]
[377937729,1754616632274,-218.82543645,0.000182,6]
[377937731,1754616632284,-1000.0,0.00018209,4]
[377937733,1754616632293,-150.0,0.00018217,2]
[377937735,1754616632302,-1000.0,0.00018234,4]
[377937737,1754616632311,-150.0,0.00018235,2]
[377937739,1754616632321,-700.0,0.000183,6]
[377937741,1754616632330,-1000.0,0.000184,6]
[377937744,1754616632339,-354.1904,0.0001843,2]
[377937746,1754616632349,-222.38788228,0.0001843,2]
[377937748,1754616632358,-1200.0,0.000185,6]
[377937751,1754616632367,-200.0,0.000186,6]
[377937754,1754616632378,-177.12,0.0001863,2]
[377937756,1754616632388,-200.0,0.000187,6]
[377937758,1754616632397,-200.0,0.000188,6]
[377937760,1754616632407,-1200.0,0.00018899,2]
[377937762,1754616632416,-250.0,0.00018899,2]
[377937763,1754616632426,-300.0,0.00018899,2]
[377937764,1754616632436,-200.0,0.000189,6]
[377937765,1754616632446,-2307.90166937,0.000189,3]
[377937766,1754616632455,-831.51438135,0.000189,2]
[377937767,1754616632465,-827.16856731,0.000189,2]
[377937768,1754616632475,-888.13297471,0.000189,2]
[377937769,1754616632484,-2345.48380501,0.000189,2]
[377937770,1754616632494,-2259.18814164,0.00018989,2]
[377937771,1754616632508,-1305.0,0.00018989,2]
[377937772,1754616632521,-427.92221897,0.00018989,2]
[377937773,1754616632532,-3117.59730682,0.00018989,2]
[377937774,1754616632542,-568.0,0.00018998,2]
[377937775,1754616632551,-18638.77755122,0.00018999,2]
[377937779,1754616632560,-219.77025335,0.00018999,2]
[377937780,1754616632824,-632.51996367,0.00018999,2]
[377937781,1754616632834,-231.71082972,0.00018999,2]
[377937782,1754616632846,-501.7078296,0.00018999,2]
[377937783,1754616632856,-500.0,0.00018999,2]
[377937784,1754616632865,-500.0,0.00018999,2]
[377937785,1754616632875,-500.0,0.00018999,2]
[377937786,1754616632885,-500.0,0.00018999,2]
[377937787,1754616632894,-500.0,0.00018999,2]
[377937788,1754616632904,-500.0,0.00018999,2]
[377937789,1754616632914,-500.0,0.00018999,2]
[377937790,1754616632923,-500.0,0.00018999,2]
[377937791,1754616632933,-500.0,0.00018999,2]
[377937792,1754616632942,-500.0,0.00018999,2]
[377937793,1754616632951,-500.0,0.00018999,2]
[377937794,1754616632961,-500.0,0.00018999,2]
[377937795,1754616632971,-500.0,0.00018999,2]
[377937796,1754616632980,-500.0,0.00018999,2]
[377937797,1754616632989,-500.0,0.00018999,2]
[377937798,1754616632999,-500.0,0.00018999,2]
[377937799,1754616633009,-500.0,0.00018999,2]
[377937800,1754616633018,-500.0,0.00018999,2]
[377937801,1754616633030,-500.0,0.00018999,2]
[377937802,1754616633040,-365.2521704,0.00018999,2]
[377937803,1754616633050,-500.0,0.00018999,2]
[377937804,1754616633060,-500.0,0.00018999,2]
[377937805,1754616633070,-500.0,0.00018999,2]
[377937806,1754616633080,-500.0,0.00018999,2]
[377937807,1754616633090,-500.0,0.00018999,2]
[377937808,1754616633099,-500.0,0.00018999,2]
[377937809,1754616633109,-500.0,0.00018999,2]
[377937810,1754616633119,-592.00721438,0.00018999,2]
[377937811,1754616633129,-500.0,0.00018999,2]
[377937812,1754616633139,-500.0,0.00018999,2]
[377937813,1754616633149,-500.0,0.00018999,2]
[377937814,1754616633159,-500.0,0.00018999,2]
[377937815,1754616633168,-500.0,0.00018999,2]
[377937816,1754616633178,-500.0,0.00018999,2]
[377937817,1754616633187,-198.93166502,0.00018999,2]
[377937818,1754616633197,-1634.75124141,0.00019,2]
[377937819,1754616633207,-217087.25132739,0.00019,2]
[377937820,1754616633220,-57666.72970443,0.00019,2]
[377937821,1754616633265,-2749.99933838,0.00019,2]
[377937822,1754616633280,-2880.85312349,0.00019,2]
[377937823,1754616633291,-722.942745,0.00019,2]
[377937824,1754616633303,-1147.14611115,0.00019,2]
[377937842,1754616637842,-508.31164004,0.0001899,2]
[377937843,1754616637852,-508.31164004,0.0001899,2]
[377937844,1754616637862,-508.31164004,0.0001899,2]
[377937845,1754616637873,-13425485.06547628,0.00019,2]
[377937846,1754616638025,-5433.17674999,0.00019,2]
[377937847,1754616638037,-3434.99565339,0.00019,2]
[377937848,1754616638048,-2088.96777164,0.00019,2]
[377937849,1754616638059,-1443.86373,0.00019,2]
[377938043,1754616639784,-4637.24438938,0.00019,2]
[377938045,1754616639796,-1139.22878096,0.00019,2]